bitfinex/quotes_ETHUSD_20230403
["timestamp","ask_amount","ask_price","bid_price","bid_amount"]
[1680512362881,9.01173201,1812.2,1811.6,0.38192353]
[1680512363373,3.68894048,1812.1,1811.6,0.56816324]
[1680512363588,1.79847,1812.0,1811.5,0.57616324]
[1680512363774,1.79847,1812.0,1811.4,15.38056324]
[1680512363775,2.78776728,1811.9,1811.4,15.38056324]
[1680512363973,0.47195673,1811.8,1811.4,15.38056324]
[1680512364396,0.47195673,1811.8,1811.4,15.37856324]
[1680512364700,0.47195673,1811.8,1811.4,15.37456324]
[1680512367262,0.85830673,1811.8,1811.4,15.37456324]
[1680512369578,0.85830673,1811.8,1811.4,5.33786324]
[1680512370003,0.85830673,1811.8,1811.4,4.7697]
[1680512370205,0.85830673,1811.8,1811.4,4.7677]
[1680512371623,0.08583067,1811.7,1811.3,0.57616324]
[1680512371827,0.1932,1811.6,1811.3,0.56816324]
[1680512373108,0.1932,1811.6,1811.2,16.87075362]
[1680512373433,1.79759,1811.6,1811.2,16.01850876]
[1680512373658,0.179759,1811.5,1811.2,16.01850876]
[1680512373955,0.19321,1811.5,1811.2,16.01850876]
[1680512375314,0.19059853,1811.5,1811.2,16.01850876]
[1680512376557,0.19059853,1811.5,1811.2,16.01250876]
[1680512376706,0.19059853,1811.5,1811.2,15.44434552]
[1680512379644,1.218,1811.6,1811.2,0.02454552]
[1680512379951,3.36739728,1811.5,1811.2,0.02254552]
[1680512380152,3.36739728,1811.5,1811.0,0.56816324]
[1680512381540,2.98097728,1811.5,1811.0,0.56816324]
[1680512382750,3.36739728,1811.5,1811.0,0.56816324]
[1680512385426,3.008,1811.6,1811.0,1.39642324]
[1680512385642,3.0,1811.6,1811.1,0.41570232]
[1680512386167,10.53309,1811.7,1811.1,0.41570232]
[1680512386367,13.31485728,1811.7,1811.1,0.41570232]
[1680512386575,13.31485728,1811.7,1811.2,5.8]
[1680512386576,1.221,1811.7,1811.2,5.8]
[1680512386742,0.14688708,1811.9,1811.3,7.2081]
[1680512387067,0.14088708,1811.9,1811.5,0.276]
[1680512388340,0.14088708,1811.9,1811.5,6.62802]
[1680512388669,0.14088708,1811.9,1811.5,6.63002]
[1680512388868,0.14088708,1811.9,1811.5,6.65256177]
[1680512389077,0.14088708,1811.9,1811.6,0.66525618]
[1680512389473,0.14088708,1811.9,1811.5,0.29854177]
[1680512390893,0.14088708,1811.9,1811.5,0.85056177]
[1680512391115,4.87444,1812.2,1811.5,1.23256177]
[1680512391408,7.66020728,1812.2,1811.5,1.23256177]
[1680512391605,7.66220728,1812.2,1811.5,7.03256177]
[1680512391774,7.66220728,1812.2,1811.6,0.70325618]
[1680512391951,7.66220728,1812.2,1811.7,0.27598]
[1680512393584,7.46906728,1812.2,1811.7,0.27598]
[1680512395754,2.79576728,1812.2,1811.7,0.27598]
[1680512395959,2.78776728,1812.2,1811.7,0.82794]
[1680512396223,2.78776728,1812.2,1811.8,0.082794]
[1680512396505,4.78,1812.3,1811.8,0.910674]
[1680512396805,7.56576728,1812.3,1811.8,0.82788]
[1680512397109,7.56776728,1812.3,1811.8,0.82788]
[1680512397908,7.56776728,1812.3,1811.9,0.0225368]
[1680512397909,0.008,1812.3,1811.9,0.0225368]
[1680512398090,3.006,1812.4,1812.0,0.27593]
[1680512398264,5.79376728,1812.4,1811.9,0.38351848]
[1680512398462,5.79376728,1812.4,1812.0,0.27593]
[1680512398463,3.008,1812.4,1812.0,0.27593]
[1680512398771,3.006,1812.4,1812.0,0.27593]
[1680512400201,0.24744339,1812.5,1812.1,2.78776728]
[1680512400408,0.24544339,1812.5,1812.3,0.82767]
[1680512400581,0.11000001,1812.5,1812.3,7.73124]
[1680512400911,0.11000001,1812.5,1812.4,7.400744]
[1680512401212,0.11000001,1812.5,1812.4,7.43127459]
[1680512402227,0.11000001,1812.5,1812.4,0.781124]
[1680512402376,0.11000001,1812.5,1812.4,1.054994]
[1680512402575,0.11000001,1812.5,1812.4,0.779124]
[1680512402777,0.11000001,1812.5,1812.4,1.606744]
[1680512403409,0.11000001,1812.5,1812.4,1.054994]
[1680512404176,0.11000001,1812.5,1812.4,6.854994]
[1680512404377,0.11000001,1812.5,1812.4,8.616744]
[1680512404580,0.11000001,1812.5,1812.4,11.998744]
[1680512404820,0.11000001,1812.5,1812.4,14.78651128]
[1680512406809,0.11000001,1812.5,1812.4,16.00551128]
[1680512408780,0.11000001,1812.5,1812.4,16.23551128]
[1680512412932,0.11000001,1812.5,1812.4,16.7937724]
[1680512416037,0.11000001,1812.5,1812.4,16.5637724]
[1680512417694,0.11000001,1812.5,1812.4,16.7937724]
[1680512422057,0.11000001,1812.5,1812.4,27.2004724]
[1680512423932,0.10742059,1812.5,1812.4,27.1944724]
[1680512424131,0.10742059,1812.5,1812.4,26.40621128]
[1680512425661,0.10742059,1812.5,1812.4,26.63621128]
[1680512426765,0.10742059,1812.5,1812.4,25.42821128]
[1680512429490,0.10742059,1812.5,1812.4,25.98945148]
[1680512432303,0.10742059,1812.5,1812.4,27.20545148]
[1680512434963,0.10742059,1812.5,1812.4,25.98645148]
[1680512438857,0.10742059,1812.5,1812.4,26.55461472]
[1680512439846,0.10742059,1812.5,1812.4,25.43586148]
[1680512439993,0.10742059,1812.5,1812.4,26.00402472]
[1680512440800,0.10742059,1812.5,1812.4,26.85626958]
[1680512441350,0.10742059,1812.5,1812.4,26.00402472]
[1680512441492,0.10742059,1812.5,1812.4,26.85875434]
[1680512441847,0.10742059,1812.5,1812.4,26.28810634]
[1680512442710,0.10742059,1812.5,1812.4,27.42443282]
[1680512442916,0.10742059,1812.5,1812.4,26.57218796]
[1680512444830,0.10742059,1812.5,1812.4,25.43586148]
[1680512445244,0.10742059,1812.5,1812.4,26.86737444]
[1680512445440,0.10742059,1812.5,1812.4,25.43586148]
[1680512446315,0.10742059,1812.5,1812.4,26.86751091]
[1680512446515,0.10742059,1812.5,1812.4,26.86752385]
[1680512446745,0.10742059,1812.5,1812.4,25.43586148]
[1680512446948,0.10742059,1812.5,1812.4,27.14442412]
[1680512447162,0.10742059,1812.5,1812.4,27.30042412]
[1680512447518,0.10742059,1812.5,1812.4,25.59186148]
[1680512450879,0.10742059,1812.5,1812.4,27.58518456]
[1680512451233,0.10742059,1812.5,1812.4,25.59186148]
[1680512451549,0.10742059,1812.5,1812.4,27.58518456]
[1680512451749,0.10742059,1812.5,1812.4,25.59186148]
[1680512452248,0.10742059,1812.5,1812.4,27.58518456]
[1680512452860,0.10742059,1812.5,1812.4,25.59186148]
[1680512453787,0.10742059,1812.5,1812.4,24.90586148]
[1680512457900,0.10742059,1812.5,1812.4,24.90233744]
[1680512459246,0.10742059,1812.5,1812.4,9.79938728]
[1680512460593,0.10742059,1812.5,1812.4,11.74908633]
[1680512461008,0.10742059,1812.5,1812.4,12.43508633]
[1680512461592,0.10742059,1812.5,1812.4,12.70871036]
[1680512461804,0.10742059,1812.5,1812.4,16.70871036]
[1680512461972,0.10742059,1812.5,1812.4,21.0776494]
[1680512462499,0.10742059,1812.5,1812.4,21.10017999]
[1680512463204,0.10742059,1812.5,1812.4,21.65004779]
[1680512463979,0.10742059,1812.5,1812.4,20.65004779]
[1680512467335,0.09788062,1812.8,1812.4,20.65004779]
[1680512467533,0.09788062,1812.8,1812.7,7.23175537]
[1680512467683,0.09788062,1812.8,1812.7,11.95233265]
[1680512467884,0.09788062,1812.8,1812.7,12.33433265]
[1680512468084,0.09788062,1812.8,1812.7,15.56433265]
[1680512470891,0.09788062,1812.8,1812.7,16.70975551]
[1680512471109,0.09788062,1812.8,1812.7,18.38073106]
[1680512471337,0.09788062,1812.8,1812.7,18.40325792]
[1680512473609,0.09788062,1812.8,1812.7,16.97150255]
[1680512479116,0.09788062,1812.8,1812.7,18.40325792]
[1680512479624,0.09788062,1812.8,1812.7,17.25783506]
[1680512480130,0.09788062,1812.8,1812.7,17.80258085]
[1680512484246,0.09788062,1812.8,1812.7,12.33433265]
[1680512484551,1.46988062,1812.8,1812.7,1.43400702]
[1680512484750,1.47588062,1812.8,1812.7,0.57280281]
[1680512484909,1.73446868,1812.8,1812.7,0.57280281]
[1680512485247,1.73446868,1812.8,1812.6,1.43200702]
[1680512485248,1.0,1812.7,1812.6,1.43200702]
[1680512485450,1.692,1812.7,1812.6,0.5729672]
[1680512486146,2.378,1812.7,1812.5,1.43417141]
[1680512486347,1.371,1812.6,1812.5,1.43217141]
[1680512486565,1.377,1812.6,1812.5,1.43217141]
[1680512487550,1.377,1812.6,1812.5,0.85920421]
[1680512487717,1.377,1812.6,1812.5,0.57298639]
[1680512490016,1.377,1812.6,1812.5,0.84884639]
[1680512490220,1.377,1812.6,1812.5,11.21676579]
[1680512490470,0.006,1812.6,1812.5,11.50498361]
[1680512491168,0.78388062,1812.8,1812.5,15.02093701]
[1680512491169,0.09788062,1812.8,1812.5,15.02093701]
[1680512491499,0.09788062,1812.8,1812.7,6.94515761]
[1680512491656,0.09788062,1812.8,1812.7,15.87797666]
[1680512491858,0.09788062,1812.8,1812.7,15.40133573]
[1680512492169,0.09788062,1812.8,1812.7,12.11479488]
[1680512492375,0.09788062,1812.8,1812.7,13.25995249]
[1680512493960,0.09788062,1812.8,1812.7,13.70069112]
[1680512495400,0.09788062,1812.8,1812.7,12.24377028]
[1680512496876,0.09788062,1812.8,1812.7,3.656003]
[1680512497090,0.09788062,1812.8,1812.7,2.50884539]
[1680512498520,0.09788062,1812.8,1812.7,1.95718539]
[1680512498815,1.30788062,1812.8,1812.7,1.68135539]
[1680512499115,1.30788062,1812.8,1812.7,1.2892163]
[1680512499284,1.30788062,1812.8,1812.7,1.0133863]
[1680512501312,1.30788062,1812.8,1812.7,0.44073863]
[1680512502120,1.30788062,1812.8,1812.6,7.89110443]
[1680512502323,1.212,1812.7,1812.6,7.89110443]
[1680512502990,1.212,1812.7,1812.6,7.61526443]
[1680512503228,1.212,1812.7,1812.6,6.37464767]
[1680512503533,1.212,1812.7,1812.6,6.65048767]
[1680512504409,1.212,1812.7,1812.6,6.37464767]
[1680512504602,1.212,1812.7,1812.6,6.65048767]
[1680512505091,1.212,1812.7,1812.6,7.20217767]
[1680512505386,0.09788062,1812.8,1812.6,11.56214024]
[1680512505639,0.09788062,1812.8,1812.7,7.48574142]
[1680512505819,0.09788062,1812.8,1812.7,7.48774142]
[1680512506235,0.09788062,1812.8,1812.7,8.05991443]
[1680512506408,0.09788062,1812.8,1812.7,7.48774142]
[1680512506595,0.09788062,1812.8,1812.7,8.05994289]
[1680512506790,0.09788062,1812.8,1812.7,8.44196648]
[1680512506996,0.09788062,1812.8,1812.7,7.31808142]
[1680512507233,0.09788062,1812.8,1812.7,7.50831186]
[1680512508110,0.09788062,1812.8,1812.7,6.65006044]
[1680512508314,0.09788062,1812.8,1812.7,7.50831186]
[1680512509006,0.09788062,1812.8,1812.7,7.94287858]
[1680512509824,0.09788062,1812.8,1812.7,7.08462716]
[1680512510912,0.09788062,1812.8,1812.7,1.95264814]
[1680512511152,0.09788062,1812.8,1812.7,3.074567]
[1680512511346,0.09788062,1812.8,1812.7,2.50230814]
[1680512511938,0.094958,1812.8,1812.7,2.50230814]
[1680512512247,0.094958,1812.8,1812.7,8.30230814]
[1680512512445,0.094958,1812.8,1812.7,9.34253015]
[1680512513915,0.094958,1812.8,1812.7,15.42320362]
[1680512514115,0.094958,1812.8,1812.7,15.64720362]
[1680512514648,0.094958,1812.8,1812.7,17.08495899]
[1680512514846,0.094958,1812.8,1812.7,15.93980138]
[1680512515263,0.094958,1812.8,1812.7,25.85160138]
[1680512519056,0.094958,1812.8,1812.7,24.41984601]
[1680512519546,0.094958,1812.8,1812.7,25.63784601]
[1680512521752,0.094958,1812.8,1812.7,33.35595246]
[1680512521954,0.094958,1812.8,1812.7,31.63784601]
[1680512522255,0.094958,1812.8,1812.7,36.93816909]
[1680512523343,0.11000001,1812.9,1812.8,0.5]
[1680512523532,0.11000001,1812.9,1812.8,21.96784419]
[1680512523737,0.11000001,1812.9,1812.8,22.35184419]
[1680512524039,0.11000001,1812.9,1812.8,22.77539091]
[1680512524557,0.11000001,1812.9,1812.8,22.27539091]
[1680512524933,0.11000001,1812.9,1812.8,23.99076176]
[1680512525615,0.11000001,1812.9,1812.8,27.29776176]
[1680512525819,0.11000001,1812.9,1812.8,25.58239091]
[1680512526228,0.11000001,1812.9,1812.8,27.29549381]
[1680512527051,0.11000001,1812.9,1812.8,25.60224965]
[1680512527442,0.11000001,1812.9,1812.8,27.31765608]
[1680512527641,0.11000001,1812.9,1812.8,26.82024965]
[1680512527891,0.11000001,1812.9,1812.8,28.81357273]
[1680512528062,0.11000001,1813.0,1812.8,28.81357273]
[1680512528230,0.11000001,1813.0,1812.9,16.22412455]
[1680512528430,0.11000001,1813.0,1812.9,25.21242455]
[1680512529253,0.11000001,1813.0,1812.9,31.21242455]
[1680512530328,0.11000001,1813.0,1812.9,32.92576934]
[1680512532563,0.11000001,1813.3,1813.2,0.5]
[1680512532890,0.11000001,1813.3,1813.2,26.71578659]
[1680512533177,0.11000001,1813.3,1813.2,30.09978659]
[1680512534275,0.11000001,1813.3,1813.2,20.45977293]
[1680512534475,0.11000001,1813.3,1813.2,25.27327293]
[1680512534659,0.11000001,1813.3,1813.2,23.84558362]
[1680512535776,0.11000001,1813.3,1813.2,24.07558362]
[1680512536186,0.11000001,1813.3,1813.2,23.84558362]
[1680512536880,0.11000001,1813.3,1813.2,25.08610427]
[1680512537646,0.11000001,1813.3,1813.2,26.17292799]
[1680512538046,0.11000001,1813.3,1813.2,20.21694165]
[1680512539081,0.06898498,1813.3,1813.2,20.62709196]
[1680512539305,0.06898498,1813.3,1813.2,20.57249196]
[1680512540111,0.02829106,1813.3,1813.2,20.57249196]
[1680512540430,1.24629106,1813.3,1813.2,0.79415031]
[1680512540572,1.24629106,1813.3,1813.2,0.41015031]
[1680512540573,1.75138677,1813.3,1813.2,0.41015031]
[1680512541130,2.218,1813.2,1812.9,0.65779]
[1680512541275,1.212,1813.0,1812.9,0.382]
[1680512541471,1.212,1813.0,1812.9,5.8]
[1680512541676,1.212,1813.0,1812.9,6.184]
[1680512542112,1.212,1813.0,1812.9,6.51290688]
[1680512542426,1.212,1813.0,1812.9,9.30067416]
[1680512542910,1.21709571,1813.0,1812.9,9.30067416]
[1680512544209,1.33880528,1813.0,1812.9,6.13090688]
[1680512544398,1.33880528,1813.0,1812.9,0.33090688]
[1680512544586,1.33370957,1813.0,1812.9,0.32890688]
[1680512545187,1.33370957,1813.0,1812.8,6.182]
[1680512545384,1.21709571,1813.0,1812.8,6.45981]
[1680512545605,1.212,1813.0,1812.9,0.382]
[1680512546130,1.212,1813.0,1812.9,9.24556728]
[1680512546427,0.00509571,1813.1,1812.9,8.58976728]
[1680512546627,2.22309571,1813.2,1813.0,2.78776728]
[1680512546843,2.44792482,1813.2,1813.0,2.78776728]
[1680512547139,2.44792482,1813.2,1813.0,3.25528122]
[1680512547340,2.44792482,1813.2,1813.0,9.05528122]
[1680512547506,2.44792482,1813.2,1813.0,9.05728122]
[1680512547688,2.44792482,1813.2,1813.0,3.25728122]
[1680512547889,2.22309571,1813.2,1813.0,3.25528122]
[1680512548941,1.21,1813.1,1813.0,0.46751394]
[1680512549124,1.21509571,1813.1,1813.0,0.46751394]
[1680512550528,0.00509571,1813.1,1813.0,9.33106122]
[1680512550738,0.00509571,1813.1,1813.0,9.05728122]
[1680512550939,2.22309571,1813.2,1813.0,3.25728122]
[1680512551116,2.22309571,1813.2,1813.0,9.05528122]
[1680512551317,2.22309571,1813.2,1813.0,0.46951394]
[1680512551517,1.212,1813.1,1813.0,0.46751394]
[1680512551770,1.21709571,1813.1,1813.0,0.46751394]
[1680512552749,1.21709571,1813.1,1813.0,3.25528122]
[1680512552952,0.00509571,1813.1,1813.0,3.27780435]
[1680512553264,2.22309571,1813.2,1813.0,3.27780435]
[1680512553465,2.44823439,1813.2,1813.0,0.46751394]
[1680512554061,2.44823439,1813.2,1813.0,6.26751394]
[1680512554228,2.44823439,1813.2,1813.0,0.74529394]
[1680512554577,2.44823439,1813.2,1813.0,6.26751394]
[1680512554867,2.44823439,1813.2,1813.0,6.26951394]
[1680512556081,0.24482344,1813.1,1813.0,0.46951394]
[1680512556389,0.24482344,1813.1,1813.0,1.29486394]
[1680512556589,0.00509571,1813.1,1813.0,0.74329394]
[1680512556732,0.00509571,1813.1,1813.0,6.54329394]
[1680512557081,0.00509571,1813.1,1813.0,6.92729394]
[1680512557982,0.00509571,1813.1,1813.0,6.65151394]
[1680512558977,0.00509571,1813.1,1813.0,6.92729394]
[1680512559290,0.00509571,1813.1,1813.0,6.65151394]
[1680512559710,0.00509571,1813.1,1813.0,6.92729394]
[1680512559917,0.00509571,1813.1,1813.0,1.12729394]
[1680512560076,1.22309571,1813.2,1813.0,0.84951394]
[1680512560274,1.34772482,1813.2,1813.0,0.84951394]
[1680512560785,1.34772482,1813.2,1813.0,0.46751394]
[1680512562104,1.212,1813.1,1813.0,0.46751394]
[1680512562309,1.21709571,1813.1,1813.0,0.46751394]
[1680512562703,1.35126819,1813.1,1813.0,0.46751394]
[1680512563041,2.35126819,1813.1,1813.0,0.46751394]
[1680512563203,2.54429819,1813.1,1813.0,0.46751394]
[1680512563402,2.35126819,1813.1,1813.0,0.46751394]
[1680512563641,2.54429819,1813.1,1813.0,0.46751394]
[1680512563834,3.76229819,1813.1,1813.0,0.46751394]
[1680512564352,1.0,1812.9,1812.5,43.36181969]
[1680512564549,1.218,1812.7,1812.5,6.47499597]
[1680512564709,1.21538467,1812.7,1812.5,6.47499597]
[1680512565034,1.21538467,1812.7,1812.6,0.42481552]
[1680512565842,1.212,1812.8,1812.6,1.08265552]
[1680512566347,1.212,1812.8,1812.6,0.70065552]
[1680512566494,1.212,1812.8,1812.6,0.42481552]
[1680512566697,1.212,1812.8,1812.6,0.70065552]
[1680512567149,1.212,1812.8,1812.7,0.27583]
[1680512567443,1.212,1812.8,1812.6,0.70064552]
[1680512568026,1.212,1812.8,1812.6,0.42481552]
[1680512569851,1.212,1812.7,1812.6,0.42481552]
[1680512572410,1.212,1812.7,1812.6,0.70065552]
[1680512572814,1.212,1812.7,1812.6,0.42481552]
[1680512574459,0.00709571,1813.0,1812.6,10.46237835]
[1680512574460,0.00509571,1813.0,1812.6,10.46237835]
[1680512574743,0.00509571,1813.1,1812.9,0.8274]
[1680512575169,0.00509571,1813.1,1812.9,1.2094]
[1680512575316,1.45293528,1813.1,1812.8,0.65781]
[1680512575695,0.00509571,1813.1,1812.8,0.65781]
[1680512575952,4.63099571,1813.2,1812.8,0.65781]
[1680512576729,4.63099571,1813.2,1812.8,1.20944]
[1680512578336,1.0,1813.1,1812.7,1.08536859]
[1680512578537,1.68389957,1813.1,1812.7,0.89136859]
[1680512578848,1.68899528,1813.1,1812.7,0.70136859]
[1680512579446,1.68899528,1813.1,1812.7,0.42555859]
[1680512579447,1.21,1813.0,1812.7,0.42555859]
[1680512579746,1.121,1812.9,1812.7,0.42555859]
[1680512580143,1.121,1812.9,1812.5,5.522]
[1680512580344,1.12609571,1812.9,1812.5,5.522]
[1680512580846,1.31915571,1812.9,1812.5,5.522]
[1680512581004,1.12609571,1812.9,1812.5,5.522]
[1680512581218,0.11260957,1812.8,1812.5,5.79785]
[1680512582348,2.22309571,1812.9,1812.5,6.34957]
[1680512582552,2.22309571,1812.9,1812.5,6.92056597]
[1680512583046,1.00509571,1812.9,1812.5,15.50833325]
[1680512583340,1.00509571,1812.9,1812.7,0.27583]
[1680512583743,1.0,1812.8,1812.7,0.27583]
[1680512584249,1.0,1812.8,1812.6,0.84683597]
[1680512585041,1.00509571,1812.9,1812.6,0.84683597]
[1680512585417,1.00509571,1812.9,1812.7,0.57099597]
[1680512585938,0.00509571,1812.9,1812.7,0.57099597]
[1680512586265,0.00509571,1812.9,1812.8,6.37099597]
[1680512586404,0.00509571,1812.9,1812.8,7.50878934]
[1680512586604,0.00509571,1813.2,1812.8,7.50878934]
[1680512586802,0.00509571,1813.2,1812.9,0.57726568]
[1680512587048,0.00509571,1813.2,1813.0,0.27578]
[1680512587546,1.24338677,1813.3,1813.0,0.27578]
[1680512592272,1.93557545,1813.3,1813.0,0.27578]
[1680512592570,1.24338677,1813.3,1813.0,0.85304568]
[1680512593575,1.24338677,1813.3,1813.0,1.40461568]
[1680512594671,1.24338677,1813.3,1813.0,0.85304568]
[1680512595953,1.24338677,1813.3,1813.0,0.57726568]
[1680512596148,1.24338677,1813.3,1813.0,0.85304568]
[1680512596347,1.93557545,1813.3,1813.0,0.85304568]
[1680512596561,1.93557545,1813.3,1813.0,0.57726568]
[1680512596886,1.93557545,1813.3,1813.0,0.85304568]
[1680512597386,1.93557545,1813.3,1813.0,0.57726568]
[1680512598460,1.92669312,1813.3,1813.0,0.57726568]
[1680512598667,0.19266931,1813.2,1813.0,0.57726568]
[1680512598890,1.92669312,1813.3,1813.0,0.57726568]
[1680512599050,1.92669312,1813.3,1813.1,0.4483865]
[1680512599463,1.0,1813.2,1813.1,0.4483865]
[1680512599663,12.21678728,1813.2,1813.1,0.4483865]
[1680512599985,12.60483728,1813.2,1812.8,0.57726568]
[1680512600187,1.218,1812.9,1812.8,0.57726568]
[1680512600353,1.218,1812.9,1812.7,0.58326568]
[1680512601273,1.218,1812.8,1812.7,0.58326568]
[1680512602793,1.218,1812.8,1812.7,0.57726568]
[1680512605175,1.218,1812.8,1812.6,0.58326568]
[1680512605498,1.3338,1812.7,1812.6,0.57726568]
[1680512605677,1.3338,1812.7,1812.6,0.58326568]
[1680512606600,1.3338,1812.7,1812.6,0.57726568]
[1680512606911,1.3338,1812.7,1812.6,0.58326568]
[1680512607123,0.1218,1812.7,1812.6,0.58326568]
[1680512607291,0.1218,1812.7,1812.6,0.57726568]
[1680512608382,0.31488,1812.7,1812.6,0.57726568]
[1680512608580,0.70104,1812.7,1812.6,0.57726568]
[1680512608822,10.50080728,1812.7,1812.5,6.10526568]
[1680512609125,3.46117073,1812.6,1812.5,6.10526568]
[1680512610204,3.84735073,1812.6,1812.5,6.10526568]
[1680512610779,3.46117073,1812.6,1812.5,5.528]
[1680512612635,6.46117073,1812.6,1812.5,5.528]
[1680512612957,6.46317073,1812.6,1812.5,5.528]
[1680512613466,6.27008073,1812.6,1812.5,5.528]
[1680512613759,6.46317073,1812.6,1812.5,5.528]
[1680512614116,6.46317073,1812.6,1812.5,5.94332116]
[1680512614117,15.43711801,1812.6,1812.5,5.94332116]
[1680512619162,15.43711801,1812.6,1812.5,5.528]
[1680512619554,15.43711801,1812.6,1812.5,5.52552877]
[1680512619755,15.44221372,1812.6,1812.5,5.51952877]
[1680512621471,16.66021372,1812.6,1812.5,5.51952877]
[1680512623631,16.89021372,1812.6,1812.5,5.51952877]
[1680512635025,15.67221372,1812.6,1812.5,5.51952877]
[1680512638081,15.81029315,1812.6,1812.5,5.51952877]
[1680512640943,15.81029315,1812.6,1812.5,5.51638034]
[1680512643153,15.81029315,1812.6,1812.5,0.12631374]
[1680512643295,5.8,1812.2,1812.1,0.006]
[1680512643496,0.57943,1812.1,1811.9,0.106]
[1680512643738,6.36719728,1812.1,1811.9,0.106]
[1680512643956,6.36919728,1812.1,1811.9,0.106]
[1680512644094,6.36919728,1812.1,1812.0,0.38501484]
[1680512644294,7.78517301,1812.1,1812.0,0.38501484]
[1680512645351,13.58517301,1812.1,1812.0,0.38501484]
[1680512647614,15.02317301,1812.1,1812.0,0.38501484]
[1680512651642,13.81517301,1812.1,1812.0,0.38501484]
[1680512652013,13.58517301,1812.1,1812.0,0.38501484]
[1680512652954,3.19514,1812.1,1812.0,0.38501484]
[1680512653148,0.19314,1812.1,1812.0,0.38501484]
[1680512653820,0.57943,1812.1,1812.0,0.38501484]
[1680512654436,3.19314,1812.1,1812.0,0.38501484]
[1680512655441,3.33196263,1812.1,1812.0,0.38501484]
[1680512655837,3.13882263,1812.1,1812.0,0.38501484]
[1680512656081,3.33196263,1812.1,1812.0,0.38501484]
[1680512656516,3.13882263,1812.1,1812.0,0.38501484]
[1680512656718,0.13882263,1812.1,1812.0,0.38501484]
[1680512657921,0.33196263,1812.1,1812.0,0.38501484]
[1680512658516,0.13882263,1812.1,1812.0,0.38501484]
[1680512659534,0.33196263,1812.1,1812.0,0.38501484]
[1680512660465,1.28378789,1812.1,1812.0,0.38501484]
[1680512660767,0.33196263,1812.1,1812.0,0.38501484]
[1680512661392,3.002,1812.2,1812.0,0.38501484]
[1680512661546,0.19512,1812.4,1812.0,0.38501484]
[1680512661871,0.19512,1812.4,1812.1,0.02253432]
[1680512661872,3.0,1812.3,1812.1,0.02253432]
[1680512662158,2.98288728,1812.4,1812.1,0.02253432]
[1680512662357,2.98088728,1812.4,1812.1,0.02253432]
[1680512662519,0.19312,1812.4,1812.1,0.02253432]
[1680512662726,3.19312,1812.4,1812.1,0.02853432]
[1680512662950,3.19312,1812.4,1812.2,0.39747759]
[1680512663532,3.0,1812.4,1812.2,0.39747759]
[1680512663759,3.19311,1812.4,1812.2,0.39747759]
[1680512664296,3.19311,1812.4,1812.1,0.02853432]
[1680512665449,0.19311,1812.4,1812.1,0.02853432]
[1680512667288,9.38131,1812.5,1812.1,0.02853432]
[1680512667588,12.16907728,1812.5,1812.1,0.02853432]
[1680512668988,13.39979295,1812.5,1812.1,0.02853432]
[1680512669287,13.01359295,1812.5,1812.1,0.02853432]
[1680512669587,13.40488866,1812.5,1811.9,18.32482372]
[1680512669757,13.40488866,1812.5,1811.9,17.468]
[1680512670090,13.40488866,1812.5,1811.9,20.30115473]
[1680512670248,13.427423,1812.5,1811.9,20.30115473]
[1680512670448,12.19670733,1812.5,1811.9,20.30115473]
[1680512670692,3.20020571,1812.5,1811.9,26.37709473]
[1680512670987,3.20020571,1812.5,1812.1,0.27591]
[1680512670988,0.00509571,1812.5,1812.1,0.27591]
[1680512671237,0.00509571,1812.7,1812.2,1.218]
[1680512671540,0.19309,1812.6,1812.3,0.1218]
[1680512673004,0.19309,1812.7,1812.3,0.1218]
[1680512673999,0.19309,1812.7,1812.4,0.42464155]
[1680512674729,4.54936355,1812.8,1812.4,0.42464155]
[1680512674957,7.33403512,1812.8,1812.4,0.37464155]
[1680512675159,7.33913083,1812.8,1812.4,0.37464155]
[1680512676055,7.33913083,1812.8,1812.3,0.1218]
[1680512677160,7.33913083,1812.8,1812.4,0.4156768]
[1680512677363,8.65304391,1812.8,1812.4,0.4156768]
[1680512677920,8.65304391,1812.8,1812.2,16.76876568]
[1680512678946,8.65304391,1812.8,1812.2,16.1915]
[1680512682889,5.30777813,1812.8,1812.2,16.1915]
[1680512683085,3.39211071,1812.8,1812.4,1.218]
[1680512683391,0.39011071,1812.8,1812.4,1.218]
[1680512683557,0.385015,1812.8,1812.4,1.218]
[1680512683750,0.385015,1812.8,1812.5,0.1218]
[1680512683964,0.578085,1812.8,1812.5,0.1218]
[1680512684885,0.964225,1812.8,1812.5,0.1218]
[1680512685182,0.964225,1812.8,1812.4,1.218]
[1680512685387,0.385015,1812.8,1812.6,1.214]
[1680512689059,0.385015,1812.8,1812.7,0.38901692]
[1680512689261,0.385015,1812.8,1812.7,0.54931861]
[1680512695495,4.90947898,1813.1,1812.8,0.00243719]
[1680512695826,5.10051898,1813.1,1812.8,0.00243719]
[1680512695994,5.10251898,1813.1,1812.8,0.00243719]
[1680512698396,5.48858898,1813.1,1812.8,0.00243719]
[1680512699312,6.33744788,1813.1,1812.8,0.00243719]
[1680512700312,1.218,1813.0,1812.8,0.00243719]
[1680512700499,0.57918,1812.9,1812.8,0.00243719]
[1680512700695,0.0015299,1812.8,1812.7,0.38901692]
[1680512701012,0.0015299,1812.8,1812.5,15.357]
[1680512701229,0.1945999,1812.8,1812.5,16.9927]
[1680512701381,0.0015299,1812.8,1812.5,16.9927]
[1680512702498,0.0015299,1812.8,1812.5,16.9867]
[1680512703897,0.0015299,1812.8,1812.5,25.57446728]
[1680512704079,0.0015299,1812.8,1812.6,10.31630313]
[1680512704282,0.0015299,1812.8,1812.6,10.50830313]
[1680512705129,0.0015299,1812.8,1812.6,11.50830313]
[1680512705299,0.0015299,1812.8,1812.6,12.05999313]
[1680512705501,0.0015299,1812.8,1812.7,0.19]
[1680512705820,0.0015299,1812.8,1812.7,7.52955588]
[1680512706010,0.0015299,1812.8,1812.7,7.53155588]
[1680512706326,0.0015299,1812.8,1812.7,8.08321588]
[1680512706819,0.0015299,1812.8,1812.7,7.89321588]
[1680512708320,0.0015299,1812.8,1812.7,7.34155588]
[1680512710223,0.0015299,1812.8,1812.7,7.06572588]
[1680512712022,0.0015299,1812.8,1812.7,6.47657889]
[1680512713695,0.0015299,1812.8,1812.7,0.002]
[1680512714035,0.0015299,1812.8,1812.6,0.4650164]
[1680512716034,0.5807399,1812.8,1812.6,0.4650164]
[1680512716967,0.58583561,1812.8,1812.6,0.4650164]
[1680512717838,1.80383561,1812.8,1812.6,0.4650164]
[1680512718042,0.75962356,1812.7,1812.6,0.4650164]
[1680512719047,0.75962356,1812.7,1812.3,11.7821894]
[1680512719250,0.75962356,1812.7,1812.4,0.57726568]
[1680512720091,0.002,1813.0,1812.9,5.8]
[1680512720370,0.02450444,1813.3,1812.9,14.12316005]